bitfinex/quotes_BTCUSD_20220307
["timestamp","ask_amount","ask_price","bid_price","bid_amount"]
[1646624685104,0.21399587,37939.0,37935.0,9.83e-05]
[1646624685307,0.20343387,37939.0,37935.0,9.83e-05]
[1646624685709,0.20343387,37939.0,37935.0,0.00052804]
[1646624686150,0.20743387,37939.0,37935.0,0.00042974]
[1646624686351,0.20743387,37939.0,37935.0,0.00052804]
[1646624687253,0.20743387,37939.0,37935.0,0.00042974]
[1646624687454,0.20343387,37939.0,37935.0,0.00052818]
[1646624688260,0.21768865,37939.0,37935.0,0.00052818]
[1646624688455,0.01647581,37938.0,37935.0,0.00052818]
[1646624688658,0.11647581,37938.0,37935.0,0.00052818]
[1646624688857,0.21647581,37938.0,37935.0,0.00052818]
[1646624689058,1.12657581,37938.0,37935.0,0.00052818]
[1646624689259,0.31647581,37938.0,37935.0,0.00052818]
[1646624689705,0.31647581,37938.0,37935.0,0.00042974]
[1646624689905,0.31647581,37938.0,37935.0,0.00052818]
[1646624690304,0.31947581,37938.0,37935.0,0.00052818]
[1646624690808,0.31947581,37938.0,37937.0,0.00021741]
[1646624691406,1.12657581,37938.0,37937.0,0.00021741]
[1646624691604,1.28577581,37938.0,37937.0,0.00015741]
[1646624692407,1.60785767,37938.0,37937.0,0.00015741]
[1646624692808,1.61842167,37938.0,37937.0,0.00015741]
[1646624693213,0.47567581,37938.0,37937.0,0.00015741]
[1646624693457,0.77567581,37938.0,37937.0,0.00015741]
[1646624693758,1.09780265,37938.0,37925.0,0.00482752]
[1646624693961,0.1592,37928.0,37925.0,0.00482752]
[1646624694155,0.33353076,37926.0,37925.0,0.00482752]
[1646624694354,0.33353076,37926.0,37913.0,0.15850066]
[1646624694355,0.8101,37924.0,37913.0,0.15850066]
[1646624694554,0.3,37923.0,37911.0,0.01318]
[1646624694754,0.1,37918.0,37913.0,0.2107148]
[1646624694956,0.1,37918.0,37911.0,0.01318]
[1646624695159,0.01458438,37916.0,37907.0,0.02051769]
[1646624695357,0.27270262,37916.0,37907.0,0.02051769]
[1646624695553,0.37270262,37916.0,37907.0,0.02051769]
[1646624696156,0.37270262,37916.0,37907.0,0.19406014]
[1646624696355,0.3,37915.0,37907.0,0.19406014]
[1646624696957,0.11458438,37916.0,37907.0,0.19406014]
[1646624697202,0.1,37916.0,37913.0,0.18853511]
[1646624697402,0.4,37919.0,37913.0,0.18853511]
[1646624697403,0.1,37919.0,37913.0,0.18853511]
[1646624697601,0.1,37918.0,37913.0,0.18853511]
[1646624698201,0.104,37918.0,37913.0,0.18853511]
[1646624698402,0.104,37918.0,37914.0,0.00012038]
[1646624698604,0.004,37918.0,37914.0,0.00012038]
[1646624699504,0.51855258,37920.0,37913.0,0.18853511]
[1646624699708,0.1,37919.0,37914.0,0.00012038]
[1646624699907,0.3,37918.0,37914.0,0.00012038]
[1646624700106,0.1,37917.0,37914.0,0.00012038]
[1646624700706,0.1,37917.0,37913.0,0.21804133]
[1646624700959,0.1,37917.0,37915.0,0.00020263]
[1646624701160,0.1,37919.0,37916.0,0.18190952]
[1646624701561,0.106342,37922.0,37917.0,0.22273975]
[1646624701759,0.1,37924.0,37921.0,0.02051769]
[1646624701960,0.1,37924.0,37923.0,0.02051769]
[1646624702159,0.03951448,37927.0,37923.0,0.02051769]
[1646624702361,0.20662595,37926.0,37918.0,0.27139162]
[1646624702960,0.20662595,37926.0,37923.0,0.02051769]
[1646624703162,0.20662595,37926.0,37923.0,0.08647069]
[1646624703561,0.20662595,37926.0,37923.0,0.13647069]
[1646624703964,0.20662595,37926.0,37923.0,0.07051769]
[1646624704362,0.21062595,37926.0,37923.0,0.07063052]
[1646624705511,0.21062595,37926.0,37923.0,0.07051769]
[1646624705512,0.20662595,37926.0,37923.0,0.07051769]
[1646624705712,0.20662595,37926.0,37923.0,0.07063052]
[1646624705912,0.20662595,37926.0,37923.0,0.05011283]
[1646624706114,0.20662595,37926.0,37923.0,0.07063052]
[1646624706312,0.21262595,37926.0,37923.0,0.07063052]
[1646624706614,0.21262595,37926.0,37923.0,0.07051769]
[1646624706812,0.21262595,37926.0,37923.0,0.07061407]
[1646624707813,0.21262595,37926.0,37923.0,0.07051769]
[1646624708013,0.21262595,37926.0,37923.0,0.07061407]
[1646624708213,0.21719095,37926.0,37923.0,0.02061407]
[1646624708452,0.010565,37926.0,37923.0,9.638e-05]
[1646624708652,0.1,37929.0,37925.0,0.02051769]
[1646624709051,0.07748784,37926.0,37925.0,0.02051769]
[1646624709254,0.07748784,37926.0,37925.0,0.02061406]
[1646624709854,0.07748784,37926.0,37925.0,0.21656688]
[1646624710156,0.07748784,37926.0,37925.0,0.21647051]
[1646624710957,0.07748784,37926.0,37925.0,0.21667236]
[1646624712111,0.07748784,37926.0,37925.0,0.20667236]
[1646624712311,0.09405184,37926.0,37925.0,0.20667236]
[1646624712512,0.08348784,37926.0,37925.0,0.01071954]
[1646624712710,0.08348784,37926.0,37925.0,0.00020185]
[1646624712910,0.08348784,37926.0,37925.0,0.01071954]
[1646624713511,0.07748784,37926.0,37925.0,0.01071954]
[1646624714317,0.08448784,37926.0,37925.0,0.01071954]
[1646624715619,0.07748784,37926.0,37925.0,0.01071954]
[1646624716261,0.00447058,37926.0,37925.0,0.09014954]
[1646624716462,0.21480944,37938.0,37925.0,0.39014954]
[1646624716663,0.21480944,37938.0,37933.0,0.01051769]
[1646624716861,0.21480944,37939.0,37933.0,0.01051769]
[1646624717066,0.21480944,37940.0,37933.0,0.01051769]
[1646624717362,0.21480944,37939.0,37937.0,0.20903502]
[1646624717563,0.31480944,37940.0,37937.0,0.20903502]
[1646624718362,0.32080944,37940.0,37937.0,0.20903502]
[1646624718961,0.21480944,37939.0,37937.0,0.20903502]
[1646624719362,0.32080944,37940.0,37937.0,0.20903502]
[1646624719618,0.21480944,37939.0,37937.0,0.20903502]
[1646624720019,0.31480944,37940.0,37937.0,0.20903502]
[1646624720218,0.32537144,37940.0,37937.0,0.20903502]
[1646624720419,0.006,37939.0,37937.0,0.20903502]
[1646624720918,0.006,37939.0,37938.0,0.00019545]
[1646624721517,0.31480944,37940.0,37938.0,0.00019545]
[1646624722320,0.32080944,37940.0,37938.0,0.00019545]
[1646624723119,0.22080944,37940.0,37938.0,0.00019545]
[1646624723355,0.22080944,37940.0,37938.0,0.17190203]
[1646624723556,0.21480944,37940.0,37938.0,0.17190203]
[1646624723957,0.22537144,37940.0,37938.0,0.17190203]
[1646624724153,0.21480944,37940.0,37938.0,0.17190203]
[1646624724356,0.5,37939.0,37935.0,0.21344864]
[1646624724658,0.21980944,37940.0,37935.0,0.21344864]
[1646624725659,0.21480944,37940.0,37935.0,0.21344864]
[1646624725856,0.06885618,37941.0,37939.0,0.00039608]
[1646624726260,0.1,37943.0,37939.0,0.00039608]
[1646624726261,0.31480944,37943.0,37939.0,0.00039608]
[1646624726657,0.28058369,37945.0,37939.0,0.00039608]
[1646624726658,0.21480944,37944.0,37941.0,0.2008102]
[1646624726861,0.06884953,37946.0,37942.0,0.3]
[1646624727118,0.31480944,37948.0,37942.0,0.5230966]
[1646624727325,0.21480944,37949.0,37942.0,0.5230966]
[1646624727517,0.00018368,37948.0,37942.0,0.5230966]
[1646624727717,0.00018368,37948.0,37942.0,0.4965666]
[1646624727919,0.01074268,37948.0,37942.0,0.3]
[1646624728118,0.21499312,37948.0,37939.0,0.05329608]
[1646624728319,0.21980944,37948.0,37940.0,0.3]
[1646624728720,0.0052197,37948.0,37940.0,0.3]
[1646624728919,0.15478446,37946.0,37939.0,0.24353067]
[1646624729924,0.15478446,37946.0,37939.0,0.19063067]
[1646624730326,0.15878446,37946.0,37939.0,0.19063067]
[1646624730971,0.15878446,37946.0,37944.0,0.00022789]
[1646624731574,0.15478446,37946.0,37944.0,0.00022789]
[1646624731774,0.01056,37946.0,37944.0,0.00022789]
[1646624732479,0.01456,37946.0,37944.0,0.00022789]
[1646624732873,0.21986981,37945.0,37944.0,0.00022789]
[1646624734375,0.004,37946.0,37944.0,0.00022789]
[1646624735708,0.00033335,37948.0,37939.0,0.19046239]
[1646624735709,0.00012078,37945.0,37939.0,0.19046239]
[1646624736108,0.00012078,37945.0,37939.0,0.24046239]
[1646624736309,0.00412078,37945.0,37939.0,0.24046239]
[1646624737513,0.00412078,37945.0,37939.0,0.30638639]
[1646624737710,0.00012078,37945.0,37939.0,0.30638639]
[1646624738457,0.00512078,37945.0,37939.0,0.30638639]
[1646624739358,0.00512078,37945.0,37939.0,0.24046239]
[1646624739558,0.01067978,37945.0,37939.0,0.24046239]
[1646624739960,0.00012078,37945.0,37939.0,0.24046239]
[1646624740162,0.00012078,37945.0,37939.0,0.30638639]
[1646624740558,0.00012078,37945.0,37940.0,0.32653]
[1646624740758,0.00012078,37945.0,37941.0,0.469506]
[1646624740957,0.00012078,37945.0,37941.0,0.46973417]
[1646624741159,0.00012078,37945.0,37942.0,0.3]
[1646624741460,0.00012078,37945.0,37943.0,0.440076]
[1646624741658,0.0688373,37953.0,37943.0,0.65791526]
[1646624741863,0.0688373,37953.0,37951.0,0.18358477]
[1646624741864,0.06969003,37953.0,37951.0,0.18358477]
[1646624742124,0.06969003,37953.0,37948.0,0.131804]
[1646624742125,0.12050435,37949.0,37948.0,0.131804]
[1646624743134,0.12050435,37949.0,37948.0,0.32762455]
[1646624743521,0.13106235,37949.0,37948.0,0.62762455]
[1646624744122,0.13106235,37949.0,37948.0,0.32762455]
[1646624744321,0.12050435,37949.0,37948.0,0.32762455]
[1646624744523,0.12050435,37949.0,37948.0,1.01770055]
[1646624744722,0.12050435,37949.0,37948.0,0.71770055]
[1646624745327,0.12050435,37949.0,37948.0,0.74423055]
[1646624746154,0.12050435,37949.0,37948.0,0.35415455]
[1646624746755,0.12050435,37949.0,37948.0,0.32762455]
[1646624747157,0.12050435,37949.0,37948.0,1.06770055]
[1646624747359,0.13106135,37949.0,37948.0,1.06770055]
[1646624747555,0.13106135,37949.0,37948.0,0.67762455]
[1646624747754,0.12050435,37949.0,37948.0,0.67762455]
[1646624748357,0.00021309,37950.0,37949.0,1.15]
[1646624748558,0.00021309,37950.0,37949.0,1.5029]
[1646624748756,0.0044,37954.0,37949.0,1.5029]
[1646624748954,0.0044,37954.0,37950.0,0.02653]
[1646624749157,0.00021309,37951.0,37950.0,0.02653]
[1646624749355,0.00021309,37951.0,37950.0,0.61678091]
[1646624749610,0.00021309,37951.0,37950.0,0.60033831]
[1646624749915,0.0044,37954.0,37950.0,0.30033831]
[1646624750115,0.0011,37951.0,37950.0,0.63821431]
[1646624750312,0.0011,37951.0,37950.0,0.61168431]
[1646624750712,0.011656,37951.0,37950.0,0.61168431]
[1646624750913,0.011656,37951.0,37950.0,0.442976]
[1646624750914,0.0011,37951.0,37950.0,0.442976]
[1646624751711,0.0011,37951.0,37950.0,0.0529]
[1646624752113,0.0011,37951.0,37948.0,0.19582055]
[1646624752313,0.0011,37951.0,37949.0,0.390076]
[1646624752514,0.0041,37951.0,37948.0,0.49582055]
[1646624753758,0.0041,37951.0,37949.0,0.29793851]
[1646624753957,0.00131308,37951.0,37950.0,0.390076]
[1646624754360,0.00131308,37951.0,37950.0,0.16685862]
[1646624754556,0.00131308,37951.0,37950.0,0.46685862]
[1646624754557,0.00531308,37951.0,37950.0,0.46685862]
[1646624754758,0.00531308,37951.0,37950.0,0.690076]
[1646624754958,0.0051,37951.0,37950.0,0.390076]
[1646624755157,0.0051,37951.0,37950.0,0.38957]
[1646624755758,0.0011,37951.0,37950.0,0.38978342]
[1646624756560,0.0051,37951.0,37950.0,0.38978342]
[1646624757400,0.0051,37951.0,37950.0,0.00021342]
[1646624757802,0.0011,37951.0,37950.0,0.38978342]
[1646624758400,0.0051,37951.0,37950.0,0.00021342]
[1646624758600,0.015657,37951.0,37950.0,0.00021342]
[1646624758801,0.015657,37951.0,37950.0,0.38978342]
[1646624759002,0.015657,37951.0,37950.0,0.00021342]
[1646624759801,0.011657,37951.0,37950.0,0.00021342]
[1646624760204,0.011657,37951.0,37950.0,0.38978342]
[1646624760403,0.015657,37951.0,37950.0,0.38978342]
[1646624760857,0.015657,37951.0,37950.0,0.00021342]
[1646624761055,0.015657,37951.0,37950.0,0.38978342]
[1646624761657,0.011657,37951.0,37950.0,0.38978342]
[1646624762455,0.014657,37951.0,37950.0,0.38978342]
[1646624762855,0.014657,37951.0,37950.0,0.38478342]
[1646624763655,0.011657,37951.0,37950.0,0.38478342]
[1646624764458,0.014657,37951.0,37950.0,0.38478342]
[1646624765705,0.011657,37951.0,37950.0,0.38478342]
[1646624765904,0.011657,37951.0,37950.0,0.38499684]
[1646624766507,0.016657,37951.0,37950.0,0.00021342]
[1646624766705,0.016657,37951.0,37950.0,0.38978342]
[1646624766912,0.0011,37954.0,37951.0,1.15]
[1646624767109,0.0001,37954.0,37952.0,0.769]
[1646624767311,0.0001,37954.0,37953.0,0.7161]
[1646624767512,0.0033,37955.0,37954.0,1.15007338]
[1646624767713,0.0033,37955.0,37954.0,1.91907338]
[1646624768008,0.0022,37958.0,37955.0,1.17653]
[1646624768208,0.0022,37958.0,37955.0,2.219]
[1646624768456,0.0022,37958.0,37956.0,1.48957]
[1646624768659,0.0022,37958.0,37956.0,0.44247]
[1646624769057,0.0022,37958.0,37956.0,0.74247]
[1646624769960,0.0022,37958.0,37956.0,0.44247]
[1646624771857,0.0023834,37958.0,37956.0,0.44247]
[1646624772311,0.0023834,37958.0,37954.0,0.00031841]
[1646624772506,0.22813,37956.0,37954.0,0.00031841]
[1646624772907,0.2426363,37956.0,37954.0,0.00031841]
[1646624773105,0.3,37955.0,37954.0,0.00031841]
[1646624773305,0.62361005,37955.0,37954.0,0.00031841]
[1646624773504,0.71955457,37955.0,37954.0,0.00031841]
[1646624773708,0.41955457,37955.0,37954.0,0.00031841]
[1646624774107,0.71955457,37955.0,37954.0,0.00031841]
[1646624774307,0.77245457,37955.0,37954.0,0.00031841]
[1646624774508,0.87545457,37955.0,37954.0,0.00031841]
[1646624774719,0.98186266,37955.0,37954.0,0.00031841]
[1646624775106,1.15195961,37955.0,37954.0,0.00031841]
[1646624775509,1.05195961,37955.0,37954.0,0.00031841]
[1646624775707,1.06251861,37955.0,37954.0,0.00031841]
[1646624775960,1.04895961,37955.0,37954.0,0.00031841]
[1646624776157,0.30417266,37955.0,37954.0,0.00031841]
[1646624776358,0.29776457,37955.0,37954.0,0.00031841]
[1646624776757,0.19776457,37955.0,37954.0,0.00031841]
[1646624777157,0.35434291,37955.0,37954.0,0.00031841]
[1646624777757,0.58247291,37955.0,37954.0,0.00031841]
[1646624777957,0.41955457,37955.0,37954.0,0.00031841]
[1646624778557,0.19442457,37955.0,37954.0,0.00031841]
[1646624778957,0.49442457,37955.0,37954.0,0.00031841]
[1646624779161,0.55695531,37955.0,37954.0,0.00031841]
[1646624779357,0.78508531,37955.0,37954.0,0.00031841]
[1646624779610,1.00422317,37955.0,37954.0,0.00031841]
[1646624779806,0.41955457,37955.0,37954.0,0.00031841]
[1646624780605,0.42255457,37955.0,37954.0,0.00031841]
[1646624780806,0.64505764,37955.0,37954.0,0.00031841]
[1646624781405,0.70554116,37955.0,37954.0,0.00031841]
[1646624781607,0.48303809,37955.0,37954.0,0.00031841]
[1646624781811,0.42255457,37955.0,37954.0,0.00031841]
[1646624782506,0.41955457,37955.0,37954.0,0.00031841]
[1646624782708,0.43411257,37955.0,37954.0,0.00031841]
[1646624783563,0.014558,37955.0,37954.0,0.00031841]
[1646624783760,0.014558,37955.0,37954.0,0.38988841]
[1646624783961,0.010558,37955.0,37954.0,0.68988841]
[1646624784158,0.0011,37957.0,37954.0,0.91055479]
[1646624784360,0.0022,37967.0,37961.0,0.02333483]
[1646624784558,0.22055444,37967.0,37961.0,0.02333483]
[1646624784959,0.0044,37962.0,37961.0,0.02333483]
[1646624785357,0.23253,37962.0,37961.0,0.02333483]
[1646624786160,0.014955,37962.0,37961.0,0.02333483]
[1646624786562,0.018955,37962.0,37961.0,0.02333483]
[1646624787807,0.243085,37962.0,37961.0,0.02333483]
[1646624790411,0.014955,37962.0,37961.0,0.18786016]
[1646624790613,0.019955,37962.0,37961.0,0.18786016]
[1646624791263,0.019955,37962.0,37961.0,0.02333483]
[1646624791463,0.248085,37962.0,37961.0,0.02333483]
[1646624791862,0.243085,37962.0,37961.0,0.02333483]
[1646624797218,0.014955,37962.0,37961.0,0.02333483]
[1646624800758,0.014955,37962.0,37961.0,0.02357914]
[1646624804716,0.019955,37962.0,37961.0,0.02357914]
[1646624805117,0.07642086,37961.0,37957.0,0.20040735]
[1646624805316,0.07642086,37961.0,37958.0,0.38957]
[1646624806484,0.07642086,37961.0,37958.0,0.56678124]
[1646624806884,0.07663372,37961.0,37957.0,0.20040735]
[1646624807086,0.07663372,37961.0,37958.0,0.38957]
[1646624807284,0.07663372,37961.0,37959.0,0.38957]
[1646624807686,0.07642086,37961.0,37959.0,0.38957]
[1646624807885,0.07642086,37961.0,37960.0,0.38957]
[1646624808086,0.07642086,37961.0,37959.0,0.19447324]
[1646624808286,0.07642086,37961.0,37960.0,0.38957]
[1646624808485,0.07642086,37961.0,37959.0,0.19447324]
[1646624808686,0.07642086,37961.0,37960.0,0.38957]
[1646624810308,0.07642086,37961.0,37960.0,0.68957]
[1646624810912,0.07654907,37961.0,37960.0,0.6898022]
[1646624811712,0.07654907,37961.0,37960.0,0.3898022]
[1646624812717,0.08054907,37961.0,37960.0,0.3898022]
[1646624813760,0.09110207,37961.0,37960.0,0.3898022]
[1646624813961,0.08710207,37961.0,37960.0,0.3898022]
[1646624814159,0.07654907,37961.0,37960.0,0.3898022]
[1646624814361,0.00226,37971.0,37967.0,0.27152291]
[1646624814959,0.0022,37968.0,37967.0,0.27152291]
[1646624816764,0.0062,37968.0,37967.0,0.27152291]
[1646624817614,0.016753,37968.0,37967.0,0.27152291]
[1646624818018,0.012753,37968.0,37967.0,0.27152291]
[1646624819114,0.0022,37968.0,37967.0,0.27152291]
[1646624819316,0.0022,37968.0,37967.0,0.66109291]
[1646624819715,0.0022,37968.0,37967.0,0.27152291]
[1646624819913,0.0022,37968.0,37967.0,0.5167187]
[1646624820514,0.00461939,37969.0,37967.0,0.5167187]
[1646624820515,0.00181939,37969.0,37967.0,0.5167187]
[1646624820966,0.0016,37969.0,37968.0,0.38957]
[1646624821763,0.012151,37969.0,37968.0,0.38957]
[1646624821964,0.00131939,37970.0,37968.0,0.38957]
[1646624822163,0.0011,37970.0,37968.0,0.6105663]
[1646624822365,0.00128371,37970.0,37968.0,0.6105663]
[1646624823369,0.0011,37970.0,37968.0,0.6105663]
[1646624824369,0.0011,37970.0,37968.0,0.2209963]
[1646624824613,0.000984,37971.0,37969.0,0.38957]
[1646624824812,0.000984,37971.0,37968.0,0.2209963]
[1646624824813,0.004,37970.0,37968.0,0.2209963]
[1646624825214,0.004,37970.0,37969.0,0.38957]
[1646624825612,0.014551,37970.0,37969.0,0.38957]
[1646624825816,0.014551,37970.0,37969.0,0.38980307]
[1646624826017,0.003184,37972.0,37969.0,0.38980307]
[1646624826018,0.00021636,37971.0,37969.0,0.38980307]
[1646624826819,0.00521636,37971.0,37969.0,0.38980307]
[1646624827016,0.005,37971.0,37969.0,0.38980307]
[1646624827219,0.005,37971.0,37969.0,0.00023307]
[1646624827617,0.005,37971.0,37970.0,0.38957]
[1646624827818,0.005,37971.0,37969.0,0.38980307]
[1646624828017,0.00339685,37972.0,37969.0,0.38980307]
[1646624828219,0.003184,37972.0,37971.0,0.18274384]
[1646624828457,0.00339685,37972.0,37971.0,0.18274384]
[1646624828661,0.00339685,37972.0,37971.0,0.57231384]
[1646624829158,0.00339685,37972.0,37971.0,0.18274384]
[1646624829360,0.003184,37972.0,37971.0,0.18274384]
[1646624829764,0.013736,37972.0,37971.0,0.18274384]
[1646624829962,0.003184,37972.0,37971.0,0.18274384]
[1646624831663,0.29709764,37978.0,37971.0,0.18274384]
[1646624831863,0.22813,37977.0,37971.0,0.18274384]
[1646624832130,0.00021364,37973.0,37971.0,0.18274384]
[1646624833027,0.004,37977.0,37971.0,0.18274384]
[1646624833230,0.00018292,37975.0,37971.0,0.18274384]
[1646624833427,0.010552,37973.0,37971.0,0.18274384]
[1646624833830,0.00018292,37975.0,37972.0,0.38957]
[1646624834027,0.00018292,37975.0,37971.0,0.18274384]
[1646624834227,0.53916218,37979.0,37971.0,0.18274384]
[1646624834428,0.23437563,37979.0,37971.0,0.18274384]
[1646624834627,0.53437563,37979.0,37971.0,0.18274384]
[1646624834828,0.004,37975.0,37971.0,0.18274384]
[1646624835729,0.004,37975.0,37972.0,0.00046027]
[1646624835963,0.04895375,37980.0,37972.0,0.00046027]
[1646624836665,0.04895375,37980.0,37977.0,0.17827175]
[1646624836867,0.00018276,37978.0,37977.0,0.17827175]
[1646624837664,0.22813,37979.0,37977.0,0.17827175]
[1646624838066,0.22835036,37979.0,37977.0,0.17827175]
[1646624838665,0.22835036,37979.0,37972.0,0.18066027]
[1646624838865,0.22813,37979.0,37972.0,0.00046027]
[1646624839070,0.01232074,37978.0,37972.0,0.00046027]
[1646624839267,0.22813,37977.0,37972.0,0.00046027]
[1646624839467,0.01272144,37974.0,37972.0,0.00046027]
[1646624839717,1.15,37972.0,37960.0,0.00012593]
[1646624839917,0.23640644,37962.0,37960.0,0.00012593]
[1646624840117,0.22813,37961.0,37955.0,0.19133671]
[1646624840317,0.22813,37961.0,37952.0,0.1716]
[1646624840318,0.34248711,37961.0,37952.0,0.1716]
[1646624840611,0.34248711,37961.0,37960.0,0.00012593]
[1646624840612,0.24248711,37961.0,37960.0,0.00012593]
[1646624840812,0.24648711,37961.0,37960.0,0.00012593]
[1646624841211,0.34648711,37961.0,37960.0,0.00012593]
[1646624841412,0.34648711,37961.0,37954.0,0.19453513]
[1646624841413,0.35704211,37961.0,37954.0,0.19453513]
[1646624841615,0.35704211,37961.0,37959.0,0.00012594]
[1646624841813,0.1,37960.0,37959.0,0.00012594]
[1646624842210,0.014555,37961.0,37959.0,0.00012594]
[1646624842611,0.010555,37961.0,37959.0,0.19632353]
[1646624842811,0.010555,37961.0,37958.0,0.00011335]
[1646624843011,0.22813,37960.0,37958.0,0.00011335]
[1646624843866,0.22813,37960.0,37957.0,0.00011335]
[1646624844469,0.22813,37960.0,37957.0,5.335e-05]
[1646624844865,0.22813,37960.0,37952.0,0.29189608]
[1646624845265,0.02258311,37961.0,37952.0,0.29189608]
[1646624845667,0.02258311,37961.0,37956.0,0.19694642]
[1646624845866,0.22813,37960.0,37956.0,0.19694642]
[1646624846267,0.02258311,37961.0,37956.0,0.19694642]
[1646624846467,0.22813,37960.0,37956.0,0.19694642]
[1646624846668,0.02258311,37961.0,37956.0,0.19694642]
[1646624846870,0.22813,37960.0,37956.0,0.19694642]
[1646624847311,0.02258311,37961.0,37956.0,0.19694642]
[1646624847913,0.010555,37961.0,37956.0,0.19694642]
[1646624848417,0.010555,37961.0,37957.0,0.38957]
[1646624848816,0.010555,37961.0,37957.0,0.38968304]
[1646624849013,0.010555,37961.0,37959.0,0.38957]
[1646624849214,0.010555,37961.0,37959.0,0.28957]
[1646624850418,0.010555,37961.0,37959.0,0.381969]
[1646624853662,0.010555,37961.0,37959.0,0.3161]
[1646624854615,0.010555,37961.0,37959.0,0.28957]
[1646624856015,0.010555,37961.0,37960.0,0.00046229]
[1646624856722,0.010555,37961.0,37960.0,0.39003229]
[1646624856917,0.010555,37961.0,37960.0,0.75266197]
[1646624857123,0.010555,37961.0,37960.0,0.56946229]
[1646624857417,9.099e-05,37971.0,37961.0,1.05]
[1646624857618,9.099e-05,37971.0,37969.0,0.17471619]
[1646624857817,9.099e-05,37971.0,37970.0,0.15551976]
[1646624858220,9.099e-05,37971.0,37970.0,0.89789876]
[1646624858476,9.099e-05,37971.0,37970.0,0.62442876]
[1646624859075,0.01064099,37971.0,37970.0,0.85951172]
[1646624859276,0.01064099,37971.0,37970.0,1.17685614]
[1646624859479,0.01064099,37971.0,37970.0,1.22685614]
[1646624859675,0.04895375,37980.0,37971.0,1.17653]
[1646624859876,0.04895375,37980.0,37977.0,0.02653]
[1646624860077,0.04895375,37980.0,37978.0,0.468909]
[1646624860275,0.04895375,37980.0,37979.0,0.32653]
[1646624860479,0.00952996,37983.0,37980.0,1.566009]
[1646624860677,0.00353262,37987.0,37984.0,0.389479]
[1646624860877,0.00353262,37987.0,37984.0,0.78625342]
[1646624861075,0.00353262,37987.0,37984.0,0.88625342]
[1646624861878,0.00353262,37987.0,37984.0,0.79477498]
[1646624862118,0.00031496,37988.0,37986.0,0.02653]
[1646624862326,0.00031496,37988.0,37987.0,0.442379]
[1646624862720,0.00331496,37988.0,37987.0,0.442379]
[1646624863320,0.00111496,37988.0,37987.0,0.442379]
[1646624864118,0.00236246,37989.0,37987.0,0.442379]
[1646624864320,0.0022,37989.0,37987.0,0.442379]
[1646624864623,0.0022,37989.0,37982.0,0.0529]
[1646624864624,0.01294847,37989.0,37982.0,0.0529]
[1646624864823,0.01794847,37989.0,37977.0,0.39376]
[1646624865024,0.00740047,37989.0,37977.0,0.39376]
[1646624865420,0.0072,37989.0,37984.0,0.18595884]
[1646624865620,0.0072,37989.0,37988.0,0.17049531]
[1646624865864,0.328144,37987.0,37977.0,0.04086]
[1646624866262,0.328144,37987.0,37984.0,9e-05]
[1646624866263,0.00640809,37986.0,37984.0,9e-05]
[1646624866666,0.0022,37989.0,37986.0,0.16205138]
[1646624866866,0.328144,37988.0,37986.0,0.16205138]
[1646624867063,0.32834447,37988.0,37986.0,0.16205138]
[1646624867263,0.00020047,37988.0,37986.0,0.16205138]
[1646624867865,0.0022,37989.0,37988.0,0.389479]
[1646624868364,0.0024004,37989.0,37987.0,0.46069398]
[1646624868563,0.0129474,37989.0,37988.0,0.23268839]
[1646624868764,0.0129474,37989.0,37987.0,0.16069398]
[1646624869163,0.012747,37989.0,37987.0,0.16069398]
[1646624869618,0.0022,37989.0,37987.0,0.16069398]
[1646624871021,0.0022,37989.0,37987.0,0.16132192]
[1646624871424,0.0022,37989.0,37987.0,0.16141192]
[1646624871826,0.0022,37989.0,37987.0,0.00071794]
[1646624872225,0.328144,37988.0,37987.0,0.00071794]
[1646624873225,0.308144,37988.0,37987.0,0.00071794]
[1646624874863,0.311144,37988.0,37987.0,0.00071794]
[1646624875862,0.311144,37988.0,37987.0,0.00040685]
[1646624876064,0.308144,37988.0,37987.0,0.00040685]
[1646624876265,0.558144,37988.0,37987.0,0.00040685]
[1646624876465,0.718694,37988.0,37987.0,0.00040685]
[1646624876864,1.064044,37988.0,37987.0,0.00040685]
[1646624877131,1.064044,37988.0,37977.0,0.04086]
[1646624877132,0.0004,37987.0,37977.0,0.04086]
[1646624877335,0.308171,37981.0,37977.0,0.04086]
[1646624877532,0.02609445,37982.0,37977.0,0.04086]
[1646624877533,0.308171,37979.0,37977.0,0.04086]
[1646624877733,0.64665298,37978.0,37977.0,0.04086]
[1646624877934,1.15,37976.0,37969.0,0.00010432]
[1646624878141,0.25490667,37970.0,37969.0,0.00010432]
[1646624878347,0.45191122,37970.0,37969.0,0.00010432]
[1646624878532,1.74068554,37976.0,37969.0,0.00010432]
[1646624878731,0.1,37970.0,37966.0,0.21698587]
[1646624878933,1.51523062,37969.0,37950.0,0.3]
[1646624879139,1.51523062,37969.0,37950.0,0.15]
[1646624879140,0.11010446,37968.0,37950.0,0.15]
[1646624879331,0.38328046,37965.0,37950.0,0.15]
[1646624879533,0.06365052,37964.0,37954.0,0.15]
[1646624879731,0.0529,37964.0,37954.0,0.15]
[1646624879946,0.0529,37964.0,37957.0,0.35221491]
[1646624880132,0.0529,37964.0,37957.0,0.16436733]
[1646624880983,0.0559,37964.0,37957.0,0.16436733]
[1646624881183,0.0292,37964.0,37957.0,0.16436733]
[1646624881981,0.0292,37964.0,37957.0,0.33650705]
[1646624882182,0.0262,37964.0,37957.0,0.33650705]
[1646624882585,0.0212,37964.0,37959.0,0.00010405]
[1646624882985,0.003,37964.0,37959.0,0.00010405]
[1646624883687,0.003,37964.0,37959.0,0.20899911]
[1646624883884,0.003,37964.0,37960.0,0.00011212]
[1646624884084,0.010555,37964.0,37960.0,0.00011212]
[1646624884282,0.010555,37964.0,37963.0,0.18317769]
[1646624884485,0.03981796,37967.0,37963.0,0.18317769]
[1646624886114,0.03981796,37967.0,37963.0,0.1832898]
[1646624887116,0.03981796,37967.0,37963.0,0.18317769]
[1646624887318,0.03981796,37967.0,37963.0,0.18327971]
[1646624887518,0.03481796,37967.0,37963.0,0.18327971]
[1646624887918,0.04537296,37967.0,37963.0,0.18327971]
[1646624888118,0.03481796,37967.0,37963.0,0.18327971]
[1646624888364,0.03481796,37967.0,37963.0,0.18317769]
[1646624888570,0.01314486,37968.0,37963.0,0.18327971]
[1646624888767,0.006341,37970.0,37963.0,0.18327971]
[1646624889168,0.23755843,37972.0,37963.0,0.18327971]
[1646624889470,0.23755843,37972.0,37963.0,0.00010202]
[1646624889471,0.1,37970.0,37963.0,0.00010202]
[1646624889670,0.1,37970.0,37961.0,0.00029287]
[1646624889870,0.1,37970.0,37966.0,0.00010202]
[1646624890070,0.1,37967.0,37966.0,0.00010202]